Cogmind - Beta 16.1 @@@ ROGUE MODE // 2026.02.16 @ 23:12:54 Player: UniqueName Result: Destroyed by 17-K8M(R) with Subdweller Shrapnel Launcher Performance ------------- Evolutions (0) 0 Regions Visited (3) 600 Robots Destroyed (11) 55 Value Destroyed (369) 369 Prototype IDs (3) 60 Alien Tech Used (0) 0 Bonus (0) 0 TOTAL SCORE: 1084 Bonus ------- None Cogmind --------- Core Integrity 0/250 Matter 235/300 Energy 100/100 System Corruption 0% Temperature Cool (0) Movement Treading (160) Location -10/Subcaves Parts ------- > --- POWER (1) -------- (None) > --- PROPULSION (2) --- Light Treads > --- UTILITY (2) ------ Small Storage Unit > --- WEAPON (2) ------- Barrage Gun Grenade Launcher > --- INVENTORY (8) ---- Light Nuclear Core Aluminum Leg Scrap Suit Utility Shielding Light Assault Rifle Enhanced Flamer Peak State ------------ > --- POWER ------------ Ion Engine > --- PROPULSION ------- Aluminum Leg Aluminum Leg > --- UTILITY ---------- Small Storage Unit Thief Drone Bay > --- WEAPON ----------- Light Assault Rifle Light Assault Rifle > --- INVENTORY -------- Light Nuclear Core Aluminum Leg Scrap Suit Heat Sink Utility Shielding Light Assault Rifle Grenade Launcher [Rating: 14] Favorites ----------- Power Ion Engine Engine Ion Engine Propulsion Light Treads Treads Light Treads Leg Aluminum Leg Utility Small Storage Unit Device Heat Sink Storage Small Storage Unit Weapon Light Assault Rifle Ballistic Gun Light Assault Rifle Ballistic Cannon Light Cannon Launcher Grenade Launcher Build | -11 -10 -10 -10 ------- Run | Yrd Mat Min Sub Slots Evolved . | . . . . Power . | . . . . Propulsion . | . . . . Utility . | . . . . Weapon . | . . . . Parts Attached 18 | 6 3 6 3 Power 3 | 1 1 1 . Engine 3 | 1 1 1 . Core . | . . . . Reactor . | . . . . Propulsion 4 | 2 . 2 . Treads 2 | 2 . . . Leg 2 | . . 2 . Wheel . | . . . . Hover . | . . . . Flight . | . . . . Utility 4 | 1 1 2 . Device 3 | . 1 2 . Storage 1 | 1 . . . Processor . | . . . . Hackware . | . . . . Protection . | . . . . Artifact . | . . . . Weapon 7 | 2 1 1 3 Energy Gun . | . . . . Energy Cannon . | . . . . Ballistic Gun 5 | 2 . 1 2 Ballistic Cannon 1 | . 1 . . Launcher 1 | . . . 1 Special Weapon . | . . . . Impact Weapon . | . . . . Slashing Weapon . | . . . . Piercing Weapon . | . . . . Special Melee Weapon . | . . . . Unidentified Prototypes 1 | . . 1 . Parts Lost 7 | . . 1 6 Power 1 | . . . 1 Propulsion 3 | . . 1 2 Utility 1 | . . . 1 Weapon 2 | . . . 2 Highest Loss Streak 4 | . . 1 4 To Critical Strikes . | . . . . Average Backups 6 | 1 6 7 5 Power 1 | . 1 1 1 Propulsion 1 | . 2 2 1 Utility 1 | . . 1 2 Weapon 2 | . 2 2 1 Tool/Special . | . . . . Unused Backups 6 | . . 1 5 Power 1 | . . . 1 Propulsion 2 | . . 1 1 Utility 2 | . . . 2 Weapon 1 | . . . 1 Tool/Special . | . . . . Average Slot Usage (%) 95 | . 93 99 90 Engine 12 | . 14 14 6 Treads 21 | . 28 21 7 Leg 5 | . . 6 19 Device 11 | . 8 14 14 Storage 14 | . 14 14 14 Ballistic Gun 23 | . 20 28 20 Ballistic Cannon 3 | . 7 . . Launcher 1 | . . . 7 Peak Build Rating 14 | 6 8 14 11 Average Rating 7 | 4 7 8 10 On Entrance 6 | . 6 8 10 Avg Prop Armor Cover (%) 7 | . . . 7 Naked Turns . | . . . . Heaviest Build 15 | 10 15 13 13 Greatest Support 40 | 40 40 40 20 Greatest Overweight (x) . | . . . . Average Overweight (x) . | . . . . Largest Inventory Capacity 8 | 8 8 8 8 Average Capacity 7 | 7 8 8 8 Most Carried 8 | 3 8 8 8 Average Carried 6 | 1 6 7 6 Final Capacity 8 | 8 8 8 8 Final Carried 8 | 3 8 8 7 Class Distribution -------------------- 87% | Mutant 12% | Scavenger-Mutant Dominant Class ---------------- Mutant | -10/Materials Mutant | -10/Mines Mutant | -10/Subcaves Resources | -11 -10 -10 -10 ----------- Run | Yrd Mat Min Sub Matter Collected 553 | 253 133 106 61 Remotely . | . . . . Salvage Created 356 | . 211 89 56 Parts 18 | . 6 8 4 Haulers Intercepted 1 | . 1 . . Recyclers Shooed . | . . . . Parts Field Recycled . | . . . . Retrieved Matter . | . . . . Parts Self-Destructed 2 | . . . 2 Prevented . | . . . . Parts Restored . | . . . . Kills | -11 -10 -10 -10 ------- Run | Yrd Mat Min Sub Combat Hostiles Destroyed 10 | . 5 3 2 Guns 4 | . 1 3 . Cannons 4 | . 4 . . AOE 2 | . . . 2 Classes Destroyed 4 | . 2 1 1 Hauler 1 | . 1 . . Swarmer 1 | . . 1 . Grunt 7 | . 5 2 . Subdweller 2 | . . . 2 Best Kill Streak 3 | . 3 2 1 Combat Bots Only 3 | . 3 2 1 Max Kills in Single Turn 2 | . 2 1 1 Gunslinging . | . . . . Exploded 1 | . . . 1 Melee . | . . . . Uniques/NPCs Destroyed . | . . . . Combat | -11 -10 -10 -10 -------- Run | Yrd Mat Min Sub Hostile Shots Fired 101 | . 30 34 37 Missed 27 | . 4 10 13 Hits 74 | . 26 24 24 Projectile 74 | . 26 24 24 AOE 4 | . . . 4 Critical Strikes 1 | . . . 1 Damage Taken 1223 | . 338 258 627 Core 258 | . 49 56 153 Absorbed by Shields . | . . . . Core Remaining (%) 100 | 100 . . . Volleys Fired 71 | . 30 13 28 Largest 2 | . 2 2 2 Hottest 58 | . 50 40 58 Shots Fired 137 | . 60 26 51 Gun 108 | . 34 26 48 Cannon 26 | . 26 . . Launcher 3 | . . . 3 Special . | . . . . Kinetic 134 | . 60 26 48 Thermal . | . . . . Explosive 3 | . . . 3 Electromagnetic . | . . . . Robot Hit Streak 13 | . 7 4 13 Robot Miss Streak 4 | . 1 4 4 Penetration Max . | . . . . Secondary Targets . | . . . . Shots Hit Robots 101 | . 47 14 40 Core Hits 28 | . 18 7 3 Critical Kills . | . . . . Critical Parts Destroyed . | . . . . Critical Strikes 1 | . 1 . . Blast 1 | . 1 . . Melee Attacks . | . . . . Impact . | . . . . Slashing . | . . . . Piercing . | . . . . Sneak Attacks . | . . . . Combat Hostiles . | . . . . Follow-up Attacks . | . . . . Damage Inflicted 877 | . 599 114 164 Guns 331 | . 199 114 18 Cannons 394 | . 394 . . Explosions 146 | . . . 146 Melee . | . . . . Ramming 6 | . 6 . . Kinetic 725 | . 593 114 18 Thermal . | . . . . Explosive 146 | . . . 146 Electromagnetic . | . . . . Impact . | . . . . Slashing . | . . . . Piercing . | . . . . Highest Corruption . | . . . . Average Corruption . | . . . . Corruption Purged . | . . . . Corruption Blocked . | . . . . Overload Shots . | . . . . Overflow Damage . | . . . . Projectiles . | . . . . Explosions . | . . . . Melee . | . . . . Knockbacks 9 | . 9 . . Impact . | . . . . Kinetic 7 | . 7 . . Secondary 2 | . 2 . . Self-Inflicted Damage 10 | . . . 10 Shots 1 | . . . 1 Rammed 2 | . 2 . . Targets Rammed 2 | . 2 . . Kicked . | . . . . Crushed . | . . . . Highest Temperature 71 | . 71 . . Average Temperature 29 | . 29 . . Received Heat Transfer 264 | . 189 75 . Siege Activations . | . . . . Martial Activations . | . . . . Shielding Activations . | . . . . Robots Disrupted . | . . . . Combat Hostiles . | . . . . Robots Corrupted . | . . . . Combat Hostiles . | . . . . Parts Fried . | . . . . Impact Corruptions . | . . . . Robots Melted . | . . . . Combat Hostiles . | . . . . Parts Melted . | . . . . Heat Transferred . | . . . . Parts Sabotaged . | . . . . Parts Stolen . | . . . . Parts Stripped . | . . . . Power Chain Reactions . | . . . . Alert | -11 -10 -10 -10 ------- Run | Yrd Mat Min Sub Maximum Alert Level . | . . . . Low Security (%) 100 | 100 100 100 . Level 1 . | . . . . Level 2 . | . . . . Level 3 . | . . . . Level 4 . | . . . . Level 5 . | . . . . High Security . | . . . . Max Security . | . . . . Peak Influence 60 | . 60 50 . Initial 7 | . . 7 . Average 13 | . 16 11 . Influence Increases 324 | . 224 100 . Destroy 0b10 Robot/C 160 | . 100 60 . Destroy 0b10 Robot/NC 5 | . 5 . . Destroy Leader 32 | . 22 10 . Successful Hack 7 | . 7 . . Lose Combat Pursuer 120 | . 90 30 . Influence Decreases 324 | . 205 119 . Entered New Map 12 | . . 12 . Time Decay 312 | . 205 107 . Squads Dispatched 1 | . 1 . . Investigation . | . . . . Extermination . | . . . . Reinforcement 1 | . 1 . . Assault . | . . . . Garrison . | . . . . Intercept . | . . . . Searches Triggered . | . . . . Construction Impeded . | . . . . Haulers Reinforced . | . . . . Active Scanning Responses . | . . . . Cargo Convoy Interrupts . | . . . . Stealth | -11 -10 -10 -10 --------- Run | Yrd Mat Min Sub Distress Signals 1 | . 1 . . Communications Jammed . | . . . . Distress Signals . | . . . . Times Spotted 22 | . 14 5 3 Peak Tracking Total 4 | . 4 3 1 Tactical Retreats 7 | . 6 1 . Traps | -11 -10 -10 -10 ------- Run | Yrd Mat Min Sub Traps Triggered . | . . . . Indirectly . | . . . . Trap Hack Attempts . | . . . . Triggered . | . . . . Disarmed . | . . . . Reprogrammed . | . . . . Reused . | . . . . Traps Extracted . | . . . . Installed . | . . . . Triggered . | . . . . Machines | -11 -10 -10 -10 ---------- Run | Yrd Mat Min Sub Machines Disabled . | . . . . Max in Single Turn . | . . . . Machines Repaired . | . . . . Machines Dismantled . | . . . . Machines Sabotaged . | . . . . Overloaded Fab Kills . | . . . . Hacking | -11 -10 -10 -10 --------- Run | Yrd Mat Min Sub Machines Accessed 4 | . 3 1 . Terminals 3 | . 3 . . Fabricators . | . . . . Repair Stations . | . . . . Recycling Units . | . . . . Scanalyzers . | . . . . Garrison Access . | . . . . Total Hacks 9 | . 8 1 . Successful 3 | . 2 1 . Failed 6 | . 6 . . Catastrophic 1 | . 1 . . Database Lockouts . | . . . . Manual . | . . . . Terminals 8 | . 8 . . Fabricators . | . . . . Repair Stations . | . . . . Recycling Units . | . . . . Scanalyzers . | . . . . Garrison Access . | . . . . Terminal Hacks 3 | . 2 1 . Prototype ID Bank 1 | . 1 . . Open Door 1 | . . 1 . Branch Access Points 1 | . 1 . . Fabricator Hacks . | . . . . Repair Station Hacks . | . . . . Recycling Unit Hacks . | . . . . Scanalyzer . | . . . . Garrison Access Hacks . | . . . . Unauthorized Hacks . | . . . . Terminals . | . . . . Fabricators . | . . . . Repair Stations . | . . . . Recycling Units . | . . . . Scanalyzers . | . . . . Garrison Access . | . . . . Data Cores Recovered . | . . . . Used . | . . . . Hacking Detections 3 | . 3 . . Full Trace Events . | . . . . Feedback Events . | . . . . Feedback Blocked . | . . . . Robot Schematics Acquired . | . . . . Robots Built . | . . . . Authchips . | . . . . Time . | . . . . Total Robot Build Rating . | . . . . Part Schematics Acquired . | . . . . Parts Built . | . . . . Authchips . | . . . . Time . | . . . . Total Part Build Rating . | . . . . Part Studies Acquired . | . . . . Parts Repaired . | . . . . Time . | . . . . Parts Recycled . | . . . . Recycled Matter . | . . . . Retrieved Matter . | . . . . Retrieved Components . | . . . . Parts Scanalyzed . | . . . . Part Schematics Acquired . | . . . . Parts Damaged . | . . . . Bothacking | -11 -10 -10 -10 ------------ Run | Yrd Mat Min Sub Used RIF Installer . | . . . . Robots Hacked . | . . . . Non-combat . | . . . . Combat . | . . . . Robot Hacks Applied . | . . . . Relay Couplers Released . | . . . . Fabnet Peak Effective % . | . . . . Robots Rewired . | . . . . Allies Hacked . | . . . . Hacks Repelled . | . . . . Allies | -11 -10 -10 -10 -------- Run | Yrd Mat Min Sub Total Allies . | . . . . Largest Group . | . . . . Highest-Rated Group . | . . . . Highest-Rated Ally . | . . . . Total Orders . | . . . . Ally Attacks . | . . . . Total Damage . | . . . . Kills . | . . . . Allies Corrupted . | . . . . Allies Melted . | . . . . Intel | -11 -10 -10 -10 ------- Run | Yrd Mat Min Sub Active Infowar (turns) . | . . . . Robot Analysis Total . | . . . . Derelict Logs Recovered 2 | . . 1 1 Drone Launches . | . . . . Drone Recoveries . | . . . . Exploration | -11 -10 -10 -10 ------------- Run | Yrd Mat Min Sub Turns Passed 1366 | 81 614 442 229 Spaces Moved 699 | 46 297 252 104 Core 3 | 3 . . . Treads 585 | 43 297 174 71 Legs 111 | . . 78 33 Wheels . | . . . . Hover . | . . . . Flight . | . . . . Fastest Speed 50 | 50 160 120 120 Average Speed 153 | 152 160 147 147 Slowest Speed 160 | 160 160 160 160 Overloaded Moves . | . . . . Propulsion Burnouts . | . . . . Robots Hopped . | . . . . Potential Cave-ins . | . . . . Cave-ins Triggered . | . . . . Exploration Rate (%) 27 | 3 50 45 10 Regions Visited 3 Branch Regions 2 Pre-discovered Areas 2 | . . 1 1 Known Exits Taken 1 | . 1 . . Unknown Exits Taken 2 | 1 . 1 . Scrap Searched 1 | . . 1 . Spaces Dug . | . . . . Terrain Destroyed 14 | . . . 14 Melee . | . . . . Projectile . | . . . . AOE 14 | . . . 14 Terrain Rammed . | . . . . Walls Destroyed . | . . . . Machines Disabled . | . . . . Actions | -11 -10 -10 -10 --------- Run | Yrd Mat Min Sub Total 876 | 54 382 303 137 Wait 61 | . 41 20 . Move 696 | 45 296 251 104 Hop . | . . . . Pick Up 16 | 3 7 5 1 Fast Attach 9 | 6 1 2 . Attach 6 | . 2 1 3 Detach . | . . . . Swap 5 | . 1 3 1 Drop 10 | . 2 8 . Fire 71 | . 30 13 28 Melee . | . . . . Ram . | . . . . Kick . | . . . . Crush 2 | . 2 . . Escape Stasis . | . . . . Rewire . | . . . . Trap . | . . . . Miscellaneous . | . . . . Route ------- -11/Scrapyard -10/Materials -10/Mines (discovered 2 exits: [*Mat] / [*Sub]) -10/Subcaves History --------- Turn | Location | Event 21 | -11/Scrapyard | Discovered new exit (range 13) 82 | -11/Scrapyard | Entered Materials 301 | -10/Materials | Build established: Mutant 588 | -10/Materials | Identified exit to Mines 696 | -10/Materials | Entered Mines 838 | -10/Mines | Learned location of Recycling (-8) 864 | -10/Mines | Found a Scrap Suit stashed away for nefarious purposes 870 | -10/Mines | Found Scrap Suit 978 | -10/Mines | Discovered new exit (range 11) 1073 | -10/Mines | Found the Drone Emporium 1081 | -10/Mines | Found Prototype Device 1082 | -10/Mines | Identified Thief Drone Bay 1130 | -10/Mines | Discovered new exit (range 6) 1138 | -10/Mines | Entered Subcaves 1151 | -10/Subcaves | Shifting Twisted Machinery released Shrapnel Trap 1163 | -10/Subcaves | Shifting Twisted Machinery released Enh. Flamer 1187 | -10/Subcaves | Core integrity fell below 50% 1229 | -10/Subcaves | Core integrity fell below 20% 1252 | -10/Subcaves | Shifting Twisted Machinery released Battle Cannon 1255 | -10/Subcaves | Learned location of Mines (-8) 1265 | -10/Subcaves | Lost 4 parts (1p1n2w) 1266 | -10/Subcaves | Shifting Twisted Machinery released Barrage Gun 1367 | -10/Subcaves | Destroyed by 17-K8M(R) with Subdweller Shrapnel Launcher Last Messages --------------- 01194_ Lgt. Assault Rifle destroyed. 01218_ Aluminum Leg destroyed. 01230_ Ion Engine destroyed. 01234_ Lgt. Assault Rifle destroyed. 01235_ X7-QNK(R) destroyed. 01238_ Subatomizers dissect the Sub. Power Source. 01241_ Acquired 32 matter. 01250_ Subatomizers dissect the Sub. Power Source, destroying it. Battle Cannon falls loose from the Twisted Machinery. 01255_ Acquired derelict log, extracted data. World map updated: -8/Mines. 01263_ Subatomizers dissect the Disposable Heat Sink. Barrage Gun falls loose from the Twisted Machinery. 01273_ Subatomizers dissect the Disposable Heat Sink. 01308_ Acquired Enh. Flamer. 01311_ Subatomizers dissect the Disposable Heat Sink. 01337_ BJ-VLV(R) destroyed. 01347_ Acquired 24 matter. 01363_ Aluminum Leg destroyed. 01363_ Imp. Heat Sink destroyed. Map ----- +----------------------------------------------------+ | ?????????????????????????????????????????????????? | | ?????????????????????????????????????????????????? | | ?????????????????????????????????????????????????? | | ?????????????????????????????????????????????????? | | ?????????????????????????????????????????????????? | | ?????????????????????????????????????????????????? | | ?????????????????????????????????????????????????? | | ?????????????????????????????????????????????????? | | ?????????????????????????????????????????????????? | | ?????????????????????????????????????????????????? | | ?????????????????????????????????????????????????? | | ?????????????????????????????????????????????????? | | ??????????????????? ???????????????????????????? | | ?????????????????## ???????????????????????????? | | ?????????????????# ##??????????????????????????? | | ?????????????#?###< "##???###???????????????????? | | ????????????? ## < ? ### ##??????????????????? | | ????????????? ? #??????????????????? | | ????????????# ### #??????????????????? | | ????????????# ;;# ;#?????????????????? | | ????????????# ;; ;;?????????????????? | | ????????????? ;#####????????????? | | ???????????????# #????????????? | | ??????????????## #????????????? | | ?????????????## #?????????????? | | ?????????### ; @ #?????????????? | | ???????# # #?????????????? | | ? "??????# ## # ;# #?????????????? | | ? ??????????# # #??? #?????????????? | | ## ??????#### #; #??????????????????? | | # #"###### # ;##??????????????????? | | # #"" & ;???????????????????? | | ## ##""" & ;#??????????????????? | | # ##"""#"# & ;#??????????????????? | | # ""# #####"" # # ;#??????????????????? | | ?#"" ###"" ###### R #??????????????????? | | ##" " # #????#"" ????????????????? | | ! # ######"" ??????????????? | | " " "" # ### "?????????????? | | " " & # # """] #" #?? "?????????????? | | #&" # ## ####" "" ## #???"?????????????? | | ## #######??##" #??##### #????????????????? | | ?# ###?????????##"""#???????? "????????????????? | | ?# ##????????????#"" ""??????????????????????????? | | ?###?????????????"" """?????????????????????????? | | ?????????????????#" """?????????????????????????? | | ??????????????????#####??????????????????????????? | | ?????????????????????????????????????????????????? | | ?????????????????????????????????????????????????? | | ?????????????????????????????????????????????????? | +----------------------------------------------------+ Best States ------------- Heat Dissipation 39 Energy Generation 10 Energy Capacity 250 Matter Stores 300 Matter Capacity 300 Sight Range 16 Terrain Scan Density 10 Evasion (%) 55 Recoil Reduction 2 Item Schematics ----------------- None Robot Schematics ------------------ None Fabricated ------------ Nothing Repaired ---------- Nothing Studied --------- None Alien Tech Used ----------------- None Achievements -------------- None Challenges ------------ None Game ------ Seed LatentImprovedCloak Manual? 0 Play Time 00:13:27 Cumulative 15.3 hours Start 2026.02.16 @ 23:01:05 End 2026.02.16 @ 23:12:54 Sessions 1 Manual Loads 0 Difficulty Rogue Special Mode None Game No. 18 Rogue 18 Adventurer 0 Explorer 0 Win Type - Total 0 Types 0/0/0/0/0/0/0/0/0/0 Lore% 11 Gallery% 21 Achievement% 17 Wizard Run 0 Options --------- Layout 0 ASCII 0 Keyboard 0 Movement Arrows Keybinds 0 Fullscreen 1 Font 18/SmallcapsGlow Map View 76x50 Zoom Use 0% Tactical HUD 1 Map Filters NONE Filters NONE Steam 1 RUN: ba4c94a3-0eb6-4ee7-9f28-7e77cee63314